[Event "Titled Tuesday Blitz June 28 Late 2022"]
[White "Wang, Isaac"]
[Black "Rios Escobar, Adan"]
[WhiteFideId "30977185"]
[BlackFideId "3403645"]
[WhiteElo "2316"]
[BlackElo "2461"]
[Result "0-1"]
[Round "06"]
[TimeControl "180+1"]
[Date "2022.06.29"]
[WhiteClock "0:00:01"]
[BlackClock "0:00:41"]

1. d4 {[%clk 0:03:00]}  Nf6 {[%clk 0:03:00]} 2. c4 {[%clk 0:02:59]}  g6 {[%clk 0:03:00]} 3. Nc3 {[%clk 0:03:00]}  Bg7 {[%clk 0:03:01]} 4. e4 {[%clk 0:03:00]}  d6 {[%clk 0:03:00]} 5. Nf3 {[%clk 0:03:00]}  O-O {[%clk 0:03:00]} 6. Be2 {[%clk 0:02:59]}  Na6 {[%clk 0:03:01]} 7. Be3 {[%clk 0:02:59]}  e5 {[%clk 0:02:56]} 8. O-O {[%clk 0:02:57]}  Qe7 {[%clk 0:02:55]} 9. Qc2 {[%clk 0:02:46]}  exd4 {[%clk 0:02:45]} 10. Nxd4 {[%clk 0:02:44]}  Re8 {[%clk 0:02:38]} 11. f3 {[%clk 0:02:39]}  c6 {[%clk 0:02:35]} 12. a3 {[%clk 0:02:38]}  Nc7 {[%clk 0:02:25]} 13. Rad1 {[%clk 0:02:36]}  d5 {[%clk 0:02:25]} 14. cxd5 {[%clk 0:02:24]}  cxd5 {[%clk 0:02:25]} 15. Bg5 {[%clk 0:02:16]}  h6 {[%clk 0:02:17]} 16. Bh4 {[%clk 0:01:54]}  dxe4 {[%clk 0:02:12]} 17. Nxe4 {[%clk 0:01:49]}  g5 {[%clk 0:02:12]} 18. Nxf6+ {[%clk 0:01:44]}  Bxf6 {[%clk 0:02:11]} 19. Bf2 {[%clk 0:01:34]}  Nd5 {[%clk 0:01:54]} 20. Bb5 {[%clk 0:01:16]}  Ne3 {[%clk 0:01:47]} 21. Qd3 {[%clk 0:00:56]}  Nxd1 {[%clk 0:01:41]} 22. Bxe8 {[%clk 0:00:25]}  Nxf2 {[%clk 0:01:38]} 23. Bxf7+ {[%clk 0:00:18]}  Qxf7 {[%clk 0:01:36]} 24. Rxf2 {[%clk 0:00:17]}  Bg7 {[%clk 0:01:25]} 25. Re2 {[%clk 0:00:15]}  Bd7 {[%clk 0:01:22]} 26. Nb3 {[%clk 0:00:08]}  Re8 {[%clk 0:00:58]} 27. Rd2 {[%clk 0:00:05]}  Qe6 {[%clk 0:00:42]} 28. Nd4 {[%clk 0:00:01]}  Qe1+ {[%clk 0:00:41]} 0-1


[Site "https://www.chess.com"]

[Event "Titled Tuesday Blitz June 28 Late 2022"]
[White "Xie, Bryan"]
[Black "Capp, Stephen"]
[WhiteFideId "30941296"]
[BlackFideId "2027089"]
[WhiteElo "1899"]
[BlackElo "2157"]
[Result "1-0"]
[Round "06"]
[TimeControl "180+1"]
[Date "2022.06.29"]
[WhiteClock "0:00:54"]
[BlackClock "0:01:29"]

1. e4 {[%clk 0:02:56]}  e5 {[%clk 0:02:58]} 2. Nf3 {[%clk 0:02:54]}  d5 {[%clk 0:02:58]} 3. exd5 {[%clk 0:02:50]}  Bd6 {[%clk 0:02:57]} 4. Nc3 {[%clk 0:02:49]}  Nf6 {[%clk 0:02:54]} 5. d4 {[%clk 0:02:49]}  e4 {[%clk 0:02:54]} 6. Nd2 {[%clk 0:02:46]}  O-O {[%clk 0:02:48]} 7. Be2 {[%clk 0:02:20]}  Bf5 {[%clk 0:02:39]} 8. g4 {[%clk 0:02:09]}  Bg6 {[%clk 0:02:33]} 9. h4 {[%clk 0:01:35]}  e3 {[%clk 0:02:22]} 10. fxe3 {[%clk 0:01:18]}  Bg3+ {[%clk 0:02:21]} 11. Kf1 {[%clk 0:01:18]}  Nxd5 {[%clk 0:02:15]} 12. Nxd5 {[%clk 0:01:15]}  Qxd5 {[%clk 0:02:07]} 13. Bf3 {[%clk 0:01:15]}  Qe6 {[%clk 0:01:40]} 14. h5 {[%clk 0:00:57]}  Qxe3 {[%clk 0:01:33]} 15. Ne4 {[%clk 0:00:57]}  Bxe4 {[%clk 0:01:29]} 16. Bxe3 {[%clk 0:00:54]} 1-0


[Site "https://www.chess.com"]

[Event "Titled Tuesday Blitz June 28 Late 2022"]
[White "Yeshchenko, Uliana"]
[Black "Munoz, Francisco Javier"]
[WhiteFideId "14187272"]
[BlackFideId "128368"]
[WhiteElo "1890"]
[BlackElo "2383"]
[Result "0-1"]
[Round "06"]
[TimeControl "180+1"]
[Date "2022.06.29"]
[WhiteClock "0:00:14"]
[BlackClock "0:00:24"]

1. d4 {[%clk 0:02:58]}  d5 {[%clk 0:02:59]} 2. c4 {[%clk 0:02:58]}  e6 {[%clk 0:03:00]} 3. Nc3 {[%clk 0:02:59]}  Nf6 {[%clk 0:03:00]} 4. cxd5 {[%clk 0:02:59]}  exd5 {[%clk 0:03:00]} 5. Bg5 {[%clk 0:03:00]}  c6 {[%clk 0:03:01]} 6. e3 {[%clk 0:03:00]}  Be7 {[%clk 0:03:02]} 7. Qc2 {[%clk 0:03:00]}  Nbd7 {[%clk 0:03:01]} 8. Bd3 {[%clk 0:03:00]}  Nh5 {[%clk 0:03:00]} 9. Bxe7 {[%clk 0:02:54]}  Qxe7 {[%clk 0:03:01]} 10. Nge2 {[%clk 0:02:54]}  Nb6 {[%clk 0:03:01]} 11. h3 {[%clk 0:02:48]}  Be6 {[%clk 0:02:59]} 12. g4 {[%clk 0:02:43]}  Nf6 {[%clk 0:02:58]} 13. Nf4 {[%clk 0:02:34]}  O-O-O {[%clk 0:02:56]} 14. O-O-O {[%clk 0:02:32]}  Kb8 {[%clk 0:02:56]} 15. Kb1 {[%clk 0:02:32]}  Bc8 {[%clk 0:02:50]} 16. Rde1 {[%clk 0:02:19]}  g5 {[%clk 0:02:49]} 17. Nfe2 {[%clk 0:02:18]}  h5 {[%clk 0:02:49]} 18. gxh5 {[%clk 0:02:14]}  Rxh5 {[%clk 0:02:49]} 19. Bf5 {[%clk 0:02:11]}  Rdh8 {[%clk 0:02:48]} 20. Ng3 {[%clk 0:02:09]}  Bxf5 {[%clk 0:02:44]} 21. Qxf5 {[%clk 0:02:07]}  Rh4 {[%clk 0:02:35]} 22. Qxg5 {[%clk 0:02:02]}  Nc4 {[%clk 0:02:33]} 23. Qf5 {[%clk 0:01:52]}  Qb4 {[%clk 0:02:29]} 24. Nd1 {[%clk 0:01:39]}  Ne8 {[%clk 0:01:36]} 25. Qd3 {[%clk 0:01:20]}  Rxh3 {[%clk 0:01:25]} 26. a3 {[%clk 0:01:16]}  Qb5 {[%clk 0:00:53]} 27. Ka2 {[%clk 0:01:06]}  Ned6 {[%clk 0:00:50]} 28. b3 {[%clk 0:01:02]}  Nxa3 {[%clk 0:00:45]} 29. Qxb5 {[%clk 0:01:02]}  Naxb5 {[%clk 0:00:46]} 30. Rxh3 {[%clk 0:00:50]}  Rxh3 {[%clk 0:00:47]} 31. Kb2 {[%clk 0:00:50]}  Rh2 {[%clk 0:00:45]} 32. Kc2 {[%clk 0:00:44]}  f5 {[%clk 0:00:40]} 33. Kd3 {[%clk 0:00:43]}  Ne4 {[%clk 0:00:38]} 34. Nxf5 {[%clk 0:00:39]}  Nxf2+ {[%clk 0:00:38]} 35. Nxf2 {[%clk 0:00:39]}  Rxf2 {[%clk 0:00:39]} 36. Ne7 {[%clk 0:00:33]}  Rb2 {[%clk 0:00:37]} 37. e4 {[%clk 0:00:21]}  Rxb3+ {[%clk 0:00:37]} 38. Kc2 {[%clk 0:00:21]}  Nxd4+ {[%clk 0:00:37]} 39. Kc1 {[%clk 0:00:20]}  dxe4 {[%clk 0:00:34]} 40. Rxe4 {[%clk 0:00:21]}  Nb5 {[%clk 0:00:33]} 41. Ng8 {[%clk 0:00:20]}  a5 {[%clk 0:00:32]} 42. Nf6 {[%clk 0:00:19]}  Rb4 {[%clk 0:00:30]} 43. Re8+ {[%clk 0:00:19]}  Ka7 {[%clk 0:00:30]} 44. Nd7 {[%clk 0:00:19]}  a4 {[%clk 0:00:30]} 45. Re7 {[%clk 0:00:17]}  a3 {[%clk 0:00:28]} 46. Ne5 {[%clk 0:00:17]}  Ka6 {[%clk 0:00:26]} 47. Kc2 {[%clk 0:00:15]}  a2 {[%clk 0:00:26]} 48. Nxc6 {[%clk 0:00:14]}  bxc6 {[%clk 0:00:25]} 49. Re8 {[%clk 0:00:13]}  a1=Q {[%clk 0:00:23]} 50. Ra8+ {[%clk 0:00:14]}  Na7 {[%clk 0:00:24]} 0-1


[Site "https://www.chess.com"]

[Event "Titled Tuesday Blitz June 28 Late 2022"]
[White "Yoo, Christopher Woojin"]
[Black "Jorajuria Mendoza, Algol"]
[WhiteFideId "30909694"]
[BlackFideId "5128897"]
[WhiteElo "2105"]
[BlackElo "1600"]
[Result "1-0"]
[Round "06"]
[TimeControl "180+1"]
[Date "2022.06.28"]
[WhiteClock "0:00:35"]
[BlackClock "0:00:01"]

1. e4 {[%clk 0:02:57]}  c5 {[%clk 0:02:59]} 2. Nf3 {[%clk 0:02:57]}  Nc6 {[%clk 0:03:00]} 3. b4 {[%clk 0:02:51]}  Nxb4 {[%clk 0:02:51]} 4. c3 {[%clk 0:02:50]}  Nc6 {[%clk 0:02:50]} 5. d4 {[%clk 0:02:51]}  cxd4 {[%clk 0:02:50]} 6. cxd4 {[%clk 0:02:52]}  g6 {[%clk 0:02:27]} 7. Bc4 {[%clk 0:02:21]}  Bg7 {[%clk 0:02:25]} 8. O-O {[%clk 0:02:20]}  e6 {[%clk 0:02:12]} 9. Nc3 {[%clk 0:02:12]}  Nge7 {[%clk 0:02:10]} 10. e5 {[%clk 0:02:05]}  O-O {[%clk 0:01:34]} 11. Ne4 {[%clk 0:01:54]}  d5 {[%clk 0:01:29]} 12. exd6 {[%clk 0:01:49]}  Nf5 {[%clk 0:01:30]} 13. Bg5 {[%clk 0:01:37]}  Qb6 {[%clk 0:01:13]} 14. Nf6+ {[%clk 0:01:33]}  Kh8 {[%clk 0:01:08]} 15. d7 {[%clk 0:01:32]}  Ncxd4 {[%clk 0:01:03]} 16. Ne5 {[%clk 0:01:18]}  Qc7 {[%clk 0:00:44]} 17. Ne8 {[%clk 0:01:07]}  Qxe5 {[%clk 0:00:15]} 18. d8=Q {[%clk 0:01:04]}  Nc6 {[%clk 0:00:13]} 19. Bf6 {[%clk 0:00:49]}  Qc5 {[%clk 0:00:01]} 20. Nxg7 {[%clk 0:00:42]}  Nxg7 {[%clk 0:00:01]} 21. Q1d6 {[%clk 0:00:35]} 1-0


[Site "https://www.chess.com"]

[Event "Titled Tuesday Blitz June 28 Late 2022"]
[White "Yuan, Qingyu"]
[Black "Terry, Renato"]
[WhiteFideId "8609772"]
[BlackFideId "3803457"]
[WhiteElo "2359"]
[BlackElo "2577"]
[Result "1-0"]
[Round "06"]
[TimeControl "180+1"]
[Date "2022.06.28"]
[WhiteClock "0:00:13"]
[BlackClock "0:00:12"]

1. e4 {[%clk 0:03:00]}  e6 {[%clk 0:02:59]} 2. d4 {[%clk 0:03:00]}  d5 {[%clk 0:03:00]} 3. e5 {[%clk 0:03:01]}  c5 {[%clk 0:03:00]} 4. c3 {[%clk 0:03:02]}  Qb6 {[%clk 0:03:00]} 5. Nf3 {[%clk 0:03:02]}  Bd7 {[%clk 0:03:00]} 6. Be2 {[%clk 0:03:01]}  cxd4 {[%clk 0:03:00]} 7. cxd4 {[%clk 0:02:57]}  Bb5 {[%clk 0:02:59]} 8. Nc3 {[%clk 0:02:50]}  Bxe2 {[%clk 0:02:59]} 9. Nxe2 {[%clk 0:02:50]}  Bb4+ {[%clk 0:02:53]} 10. Bd2 {[%clk 0:02:49]}  Nc6 {[%clk 0:02:52]} 11. O-O {[%clk 0:02:47]}  Bxd2 {[%clk 0:02:51]} 12. Qxd2 {[%clk 0:02:46]}  Nge7 {[%clk 0:02:52]} 13. Rab1 {[%clk 0:02:43]}  Na5 {[%clk 0:02:45]} 14. Rfc1 {[%clk 0:02:34]}  O-O {[%clk 0:02:43]} 15. b3 {[%clk 0:02:32]}  Rac8 {[%clk 0:02:41]} 16. h4 {[%clk 0:02:32]}  Nac6 {[%clk 0:02:31]} 17. h5 {[%clk 0:02:27]}  h6 {[%clk 0:02:31]} 18. Rc3 {[%clk 0:02:16]}  Nb8 {[%clk 0:01:32]} 19. Rbc1 {[%clk 0:02:12]}  Nd7 {[%clk 0:01:27]} 20. Qd3 {[%clk 0:02:04]}  Rxc3 {[%clk 0:01:24]} 21. Rxc3 {[%clk 0:02:03]}  Rc8 {[%clk 0:01:24]} 22. g4 {[%clk 0:01:59]}  Rxc3 {[%clk 0:01:22]} 23. Qxc3 {[%clk 0:01:57]}  Nc6 {[%clk 0:01:15]} 24. g5 {[%clk 0:01:44]}  Qb4 {[%clk 0:01:13]} 25. Qc1 {[%clk 0:01:39]}  hxg5 {[%clk 0:01:05]} 26. Qxg5 {[%clk 0:01:37]}  Qe7 {[%clk 0:01:06]} 27. Qg4 {[%clk 0:01:34]}  Kh8 {[%clk 0:00:55]} 28. Ng5 {[%clk 0:01:26]}  Nf8 {[%clk 0:00:55]} 29. Kg2 {[%clk 0:01:24]}  f6 {[%clk 0:00:53]} 30. Nf3 {[%clk 0:01:13]}  Qf7 {[%clk 0:00:41]} 31. Nf4 {[%clk 0:01:08]}  Ne7 {[%clk 0:00:41]} 32. Nh4 {[%clk 0:01:03]}  Kh7 {[%clk 0:00:32]} 33. Nhg6 {[%clk 0:00:51]}  fxe5 {[%clk 0:00:27]} 34. dxe5 {[%clk 0:00:31]}  Nd7 {[%clk 0:00:15]} 35. Nxe6 {[%clk 0:00:27]}  Qf5 {[%clk 0:00:12]} 36. Qxf5 {[%clk 0:00:06]}  Nxf5 {[%clk 0:00:12]} 37. Kf3 {[%clk 0:00:03]}  d4 {[%clk 0:00:03]} 38. Kg4 {[%clk 0:00:04]}  d3 {[%clk 0:00:03]} 39. Ng5+ {[%clk 0:00:03]}  Kg8 {[%clk 0:00:03]} 40. Ne4 {[%clk 0:00:03]}  Nd4 {[%clk 0:00:02]} 41. Nf4 {[%clk 0:00:03]}  Kf7 {[%clk 0:00:03]} 42. Nxd3 {[%clk 0:00:03]}  Ke6 {[%clk 0:00:02]} 43. f4 {[%clk 0:00:04]}  b6 {[%clk 0:00:02]} 44. Kg5 {[%clk 0:00:04]}  Kd5 {[%clk 0:00:02]} 45. Ng3 {[%clk 0:00:04]}  Ne6+ {[%clk 0:00:02]} 46. Kg6 {[%clk 0:00:04]}  Kd4 {[%clk 0:00:02]} 47. f5 {[%clk 0:00:04]}  Nef8+ {[%clk 0:00:02]} 48. Kf7 {[%clk 0:00:04]}  Kxd3 {[%clk 0:00:03]} 49. e6 {[%clk 0:00:05]}  Kd4 {[%clk 0:00:02]} 50. exd7 {[%clk 0:00:05]}  Nxd7 {[%clk 0:00:02]} 51. Kxg7 {[%clk 0:00:06]}  Ke5 {[%clk 0:00:02]} 52. h6 {[%clk 0:00:06]}  Nf6 {[%clk 0:00:02]} 53. h7 {[%clk 0:00:07]}  Nxh7 {[%clk 0:00:03]} 54. Kxh7 {[%clk 0:00:08]}  Kf6 {[%clk 0:00:03]} 55. Kh6 {[%clk 0:00:08]}  b5 {[%clk 0:00:04]} 56. Kh5 {[%clk 0:00:09]}  a5 {[%clk 0:00:05]} 57. Kh6 {[%clk 0:00:09]}  a4 {[%clk 0:00:06]} 58. b4 {[%clk 0:00:10]}  a3 {[%clk 0:00:07]} 59. Kh5 {[%clk 0:00:11]}  Ke5 {[%clk 0:00:07]} 60. Kg6 {[%clk 0:00:11]}  Kd4 {[%clk 0:00:08]} 61. f6 {[%clk 0:00:12]}  Kc3 {[%clk 0:00:09]} 62. f7 {[%clk 0:00:12]}  Kb2 {[%clk 0:00:10]} 63. f8=Q {[%clk 0:00:12]}  Kxa2 {[%clk 0:00:11]} 64. Qc5 {[%clk 0:00:12]}  Kb2 {[%clk 0:00:11]} 65. Qxb5 {[%clk 0:00:13]}  a2 {[%clk 0:00:11]} 66. Qa5 {[%clk 0:00:13]}  a1=Q {[%clk 0:00:12]} 67. Qe5+ {[%clk 0:00:13]} 1-0


[Site "https://www.chess.com"]

[Event "Titled Tuesday Blitz June 28 Late 2022"]
[White "Ahn, Hongjin"]
[Black "Paszewski, Mateusz"]
[WhiteFideId "13201492"]
[BlackFideId "1141058"]
[WhiteElo "2503"]
[BlackElo "2673"]
[Result "1-0"]
[Round "07"]
[TimeControl "180+1"]
[Date "2022.06.29"]
[WhiteClock "0:00:08"]
[BlackClock "0:00:01"]

1. d4 {[%clk 0:02:54]}  d5 {[%clk 0:02:59]} 2. Nf3 {[%clk 0:02:53]}  Nf6 {[%clk 0:02:57]} 3. c4 {[%clk 0:02:54]}  c6 {[%clk 0:02:57]} 4. Nc3 {[%clk 0:02:54]}  e6 {[%clk 0:02:58]} 5. g3 {[%clk 0:02:54]}  dxc4 {[%clk 0:02:58]} 6. Bg2 {[%clk 0:02:55]}  Nbd7 {[%clk 0:02:58]} 7. O-O {[%clk 0:02:55]}  b5 {[%clk 0:02:59]} 8. a4 {[%clk 0:02:55]}  Qb6 {[%clk 0:02:56]} 9. Ne5 {[%clk 0:02:52]}  Bb7 {[%clk 0:02:56]} 10. Bg5 {[%clk 0:02:49]}  a6 {[%clk 0:02:51]} 11. e4 {[%clk 0:02:49]}  Nxe5 {[%clk 0:02:41]} 12. dxe5 {[%clk 0:02:48]}  Nd7 {[%clk 0:02:42]} 13. Bf4 {[%clk 0:02:43]}  Rd8 {[%clk 0:02:30]} 14. Qh5 {[%clk 0:02:39]}  h6 {[%clk 0:02:24]} 15. Rad1 {[%clk 0:02:29]}  g6 {[%clk 0:02:23]} 16. Qh3 {[%clk 0:02:24]}  Bg7 {[%clk 0:02:19]} 17. Rd6 {[%clk 0:02:10]}  Nxe5 {[%clk 0:02:07]} 18. Bxe5 {[%clk 0:01:58]}  Bxe5 {[%clk 0:02:06]} 19. Rxe6+ {[%clk 0:01:57]}  fxe6 {[%clk 0:02:00]} 20. Qxe6+ {[%clk 0:01:57]}  Kf8 {[%clk 0:02:00]} 21. Qxe5 {[%clk 0:01:57]}  Rh7 {[%clk 0:01:54]} 22. Qf6+ {[%clk 0:01:55]}  Kg8 {[%clk 0:01:48]} 23. Nd5 {[%clk 0:01:10]}  Qa5 {[%clk 0:00:42]} 24. Qxg6+ {[%clk 0:01:02]}  Kh8 {[%clk 0:00:33]} 25. Nf6 {[%clk 0:00:58]}  Qc7 {[%clk 0:00:20]} 26. Nxh7 {[%clk 0:00:56]}  Qg7 {[%clk 0:00:20]} 27. Qf5 {[%clk 0:00:40]}  Bc8 {[%clk 0:00:16]} 28. Qf6 {[%clk 0:00:30]}  Rd2 {[%clk 0:00:16]} 29. Qxc6 {[%clk 0:00:22]}  Bd7 {[%clk 0:00:09]} 30. Qa8+ {[%clk 0:00:18]}  Kxh7 {[%clk 0:00:09]} 31. e5 {[%clk 0:00:17]}  Qxe5 {[%clk 0:00:05]} 32. Qxa6 {[%clk 0:00:10]}  Rxb2 {[%clk 0:00:01]} 33. Qb7 {[%clk 0:00:08]} 1-0


[Site "https://www.chess.com"]

[Event "Titled Tuesday Blitz June 28 Late 2022"]
[White "Andrews, Todd"]
[Black "Fajdetic, Hrvoje"]
[WhiteFideId "2012456"]
[BlackFideId "14501945"]
[WhiteElo "2365"]
[BlackElo "2172"]
[Result "0-1"]
[Round "07"]
[TimeControl "180+1"]
[Date "2022.06.29"]
[WhiteClock "0:00:51"]
[BlackClock "0:00:10"]

1. e4 {[%clk 0:03:00]}  c5 {[%clk 0:02:58]} 2. Nf3 {[%clk 0:03:00]}  g6 {[%clk 0:02:57]} 3. d4 {[%clk 0:03:00]}  cxd4 {[%clk 0:02:57]} 4. Nxd4 {[%clk 0:03:01]}  Bg7 {[%clk 0:02:57]} 5. Nc3 {[%clk 0:03:01]}  Nc6 {[%clk 0:02:57]} 6. Be3 {[%clk 0:03:00]}  Nf6 {[%clk 0:02:56]} 7. Bc4 {[%clk 0:02:58]}  Ng4 {[%clk 0:02:52]} 8. Nxc6 {[%clk 0:02:48]}  Nxe3 {[%clk 0:02:40]} 9. Bxf7+ {[%clk 0:02:47]}  Kf8 {[%clk 0:02:39]} 10. Qf3 {[%clk 0:02:47]}  dxc6 {[%clk 0:02:27]} 11. Bb3+ {[%clk 0:02:34]}  Bf6 {[%clk 0:02:21]} 12. fxe3 {[%clk 0:02:32]}  e5 {[%clk 0:02:18]} 13. Rd1 {[%clk 0:02:30]}  Qe7 {[%clk 0:02:18]} 14. O-O {[%clk 0:02:29]}  Kg7 {[%clk 0:02:17]} 15. Na4 {[%clk 0:02:16]}  b6 {[%clk 0:02:14]} 16. Rd2 {[%clk 0:02:11]}  Be6 {[%clk 0:02:02]} 17. Bxe6 {[%clk 0:02:04]}  Qxe6 {[%clk 0:02:01]} 18. Rdf2 {[%clk 0:01:57]}  Rhf8 {[%clk 0:01:58]} 19. b3 {[%clk 0:01:52]}  Be7 {[%clk 0:01:43]} 20. Qg3 {[%clk 0:01:50]}  Rxf2 {[%clk 0:01:40]} 21. Rxf2 {[%clk 0:01:51]}  Rf8 {[%clk 0:01:35]} 22. h3 {[%clk 0:01:47]}  Rxf2 {[%clk 0:01:16]} 23. Qxf2 {[%clk 0:01:48]}  Qd6 {[%clk 0:01:10]} 24. Nb2 {[%clk 0:01:45]}  b5 {[%clk 0:01:09]} 25. Nd3 {[%clk 0:01:39]}  c5 {[%clk 0:00:59]} 26. Qg3 {[%clk 0:01:34]}  Bf6 {[%clk 0:00:58]} 27. Qg4 {[%clk 0:01:25]}  c4 {[%clk 0:00:54]} 28. Nf2 {[%clk 0:01:25]}  Qd2 {[%clk 0:00:50]} 29. bxc4 {[%clk 0:01:16]}  Qe1+ {[%clk 0:00:48]} 30. Kh2 {[%clk 0:01:16]}  Qxf2 {[%clk 0:00:48]} 31. Qd7+ {[%clk 0:01:15]}  Kh6 {[%clk 0:00:47]} 32. cxb5 {[%clk 0:01:13]}  Qxe3 {[%clk 0:00:44]} 33. Qd3 {[%clk 0:01:03]}  Qxd3 {[%clk 0:00:24]} 34. cxd3 {[%clk 0:01:04]}  Kg5 {[%clk 0:00:21]} 35. Kg3 {[%clk 0:01:04]}  Be7 {[%clk 0:00:21]} 36. Kf3 {[%clk 0:01:02]}  Bc5 {[%clk 0:00:19]} 37. a4 {[%clk 0:01:01]}  h5 {[%clk 0:00:18]} 38. g3 {[%clk 0:01:00]}  h4 {[%clk 0:00:17]} 39. g4 {[%clk 0:00:59]}  Bd4 {[%clk 0:00:16]} 40. a5 {[%clk 0:00:59]}  Bc5 {[%clk 0:00:16]} 41. Ke2 {[%clk 0:00:57]}  Kf4 {[%clk 0:00:15]} 42. Kd2 {[%clk 0:00:57]}  Kg3 {[%clk 0:00:15]} 43. Kc3 {[%clk 0:00:58]}  Kxh3 {[%clk 0:00:15]} 44. Kc4 {[%clk 0:00:59]}  Bd4 {[%clk 0:00:15]} 45. b6 {[%clk 0:00:56]}  axb6 {[%clk 0:00:16]} 46. a6 {[%clk 0:00:57]}  b5+ {[%clk 0:00:16]} 47. Kxb5 {[%clk 0:00:58]}  Kxg4 {[%clk 0:00:16]} 48. Kc6 {[%clk 0:00:55]}  h3 {[%clk 0:00:15]} 49. Kd5 {[%clk 0:00:55]}  h2 {[%clk 0:00:14]} 50. a7 {[%clk 0:00:51]}  Bxa7 {[%clk 0:00:14]} 51. Kxe5 {[%clk 0:00:52]}  h1=Q {[%clk 0:00:09]} 52. d4 {[%clk 0:00:52]}  Bxd4+ {[%clk 0:00:08]} 53. Kxd4 {[%clk 0:00:52]}  Kf4 {[%clk 0:00:09]} 54. Kd5 {[%clk 0:00:51]}  Qxe4+ {[%clk 0:00:10]} 55. Kd6 {[%clk 0:00:51]}  g5 {[%clk 0:00:10]} 0-1


[Site "https://www.chess.com"]

[Event "Titled Tuesday Blitz June 28 Late 2022"]
[White "Arnold, Ken"]
[Black "Sarkar, Justin"]
[WhiteFideId "2056836"]
[BlackFideId "2010011"]
[WhiteElo "2270"]
[BlackElo "2020"]
[Result "0-1"]
[Round "07"]
[TimeControl "180+1"]
[Date "2022.06.29"]
[WhiteClock "0:00:13"]
[BlackClock "0:00:05"]

1. e4 {[%clk 0:03:00]}  e5 {[%clk 0:02:57]} 2. Nf3 {[%clk 0:03:00]}  Nc6 {[%clk 0:02:57]} 3. Bc4 {[%clk 0:03:00]}  Nf6 {[%clk 0:02:54]} 4. d3 {[%clk 0:03:00]}  Be7 {[%clk 0:02:43]} 5. O-O {[%clk 0:02:58]}  O-O {[%clk 0:02:42]} 6. h3 {[%clk 0:02:57]}  d5 {[%clk 0:02:35]} 7. exd5 {[%clk 0:02:57]}  Nxd5 {[%clk 0:02:35]} 8. Re1 {[%clk 0:02:55]}  Qd6 {[%clk 0:02:24]} 9. Nbd2 {[%clk 0:02:52]}  Nb6 {[%clk 0:02:22]} 10. Ne4 {[%clk 0:02:51]}  Qg6 {[%clk 0:02:20]} 11. Ng3 {[%clk 0:02:29]}  Nxc4 {[%clk 0:02:16]} 12. dxc4 {[%clk 0:02:29]}  f6 {[%clk 0:02:11]} 13. c3 {[%clk 0:02:27]}  Be6 {[%clk 0:02:07]} 14. Qe2 {[%clk 0:02:24]}  Rad8 {[%clk 0:02:01]} 15. b3 {[%clk 0:02:22]}  Qd3 {[%clk 0:01:55]} 16. Bb2 {[%clk 0:02:08]}  Qxe2 {[%clk 0:01:44]} 17. Rxe2 {[%clk 0:02:07]}  Kf7 {[%clk 0:01:39]} 18. Rae1 {[%clk 0:02:06]}  Rfe8 {[%clk 0:01:30]} 19. Nh4 {[%clk 0:01:21]}  Bf8 {[%clk 0:01:22]} 20. Nhf5 {[%clk 0:01:10]}  g6 {[%clk 0:01:16]} 21. Ne3 {[%clk 0:01:09]}  f5 {[%clk 0:01:13]} 22. Ngf1 {[%clk 0:01:02]}  e4 {[%clk 0:01:05]} 23. Nd5 {[%clk 0:01:00]}  Bxd5 {[%clk 0:01:00]} 24. cxd5 {[%clk 0:01:00]}  Rxd5 {[%clk 0:01:00]} 25. f3 {[%clk 0:00:53]}  Rde5 {[%clk 0:00:46]} 26. c4 {[%clk 0:00:51]}  Bc5+ {[%clk 0:00:42]} 27. Kh1 {[%clk 0:00:49]}  Bd4 {[%clk 0:00:37]} 28. Bxd4 {[%clk 0:00:30]}  Nxd4 {[%clk 0:00:38]} 29. Rd2 {[%clk 0:00:30]}  c5 {[%clk 0:00:32]} 30. f4 {[%clk 0:00:30]}  R5e7 {[%clk 0:00:23]} 31. Ne3 {[%clk 0:00:29]}  h5 {[%clk 0:00:22]} 32. h4 {[%clk 0:00:28]}  b6 {[%clk 0:00:18]} 33. Kg1 {[%clk 0:00:28]}  Rd7 {[%clk 0:00:17]} 34. Kf2 {[%clk 0:00:27]}  Red8 {[%clk 0:00:16]} 35. Nd5 {[%clk 0:00:26]}  Ne6 {[%clk 0:00:15]} 36. Red1 {[%clk 0:00:22]}  Nxf4 {[%clk 0:00:12]} 37. Ke3 {[%clk 0:00:18]}  Nd3 {[%clk 0:00:07]} 38. Rxd3 {[%clk 0:00:18]}  exd3 {[%clk 0:00:07]} 39. Rxd3 {[%clk 0:00:18]}  Ke6 {[%clk 0:00:07]} 40. Kf4 {[%clk 0:00:17]}  Rxd5 {[%clk 0:00:06]} 41. cxd5+ {[%clk 0:00:16]}  Rxd5 {[%clk 0:00:06]} 42. Re3+ {[%clk 0:00:16]}  Kf6 {[%clk 0:00:06]} 43. Re8 {[%clk 0:00:16]}  Rd4+ {[%clk 0:00:06]} 44. Kg3 {[%clk 0:00:16]}  Rg4+ {[%clk 0:00:06]} 45. Kh3 {[%clk 0:00:16]}  c4 {[%clk 0:00:05]} 46. bxc4 {[%clk 0:00:13]}  Rxc4 {[%clk 0:00:05]} 47. Ra8 {[%clk 0:00:13]}  Ra4 {[%clk 0:00:05]} 0-1


[Site "https://www.chess.com"]